Cogmind - Beta 9.5 @@@ ROGUE MODE // 2020.04.03 @ 17:09:23 // AFD2020/Player2 Player: Finestep Result: Core destroyed Performance ------------- Evolutions (3) 1500 Regions Visited (12) 2400 Robots Destroyed (134) 670 Value Destroyed (3402) 3402 Prototype IDs (17) 340 Alien Tech Used (0) 0 Bonus (4010) 4010 TOTAL SCORE: 12322 Bonus ------- High Alert Combat Kills 1007 Follower Combat Kills 2948 Met Imprinter 300 Destroyed Z-Imprinter 1000 Friendly Fire -1245 Cogmind --------- Core Integrity 0/700 Matter 191/300 Energy 21/100 System Corruption 0% Temperature Cool (0) Movement Walking (230) Ox3 Location -7/Deep Caves Parts ------- > --- POWER (1) -------- (None) > --- PROPULSION (3) --- Makeshift Leg > --- UTILITY (7) ------ Large Storage Unit Large Storage Unit High-capacity Storage Unit Tactical Coordination Suite Layered Light Armor Plating Experimental Thermal Shield > --- WEAPON (2) ------- (None) > --- INVENTORY (24) --- Experimental Heat Sink Cooling System Large Storage Unit High-capacity Battery (4) Zionite Metafield Generator Advanced Targeting Computer Advanced Particle Charger Phase Shifter Zionite Weapon Casing Hardened Heavy Armor Plating Lightning Gun EM Pulse Cannon EM Pulse Cannon Improved EM Pulse Cannon Shock Bomb Launcher Mini Grenade Launcher Ripper Phasing Sabre Makeshift Spear Peak State ------------ > --- POWER ------------ Fission Core > --- PROPULSION ------- Carbon-fiber Leg Carbon-fiber Leg Carbon-fiber Leg > --- UTILITY ---------- Experimental Heat Sink Large Storage Unit Large Storage Unit High-capacity Storage Unit Zionite Biocell Tactical Coordination Suite Experimental Thermal Shield > --- WEAPON ----------- Lightning Gun EM Pulse Cannon > --- INVENTORY -------- Makeshift Leg Improved Heat Sink Cooling System Cooling System Large Storage Unit High-capacity Battery Zionite Metafield Generator Advanced Targeting Computer Energy Filter Advanced Particle Charger Zionite Weapon Casing Zionite Weapon Casing Hardened Heavy Armor Plating Layered Light Armor Plating EM Pulse Cannon Improved EM Pulse Cannon Shock Bomb Launcher Shock Bomb Launcher Advanced EMP Blaster Mini Grenade Launcher Ripper Phasing Sabre Makeshift Spear [Rating: 60] Favorites ----------- Power Improved Deuterium Engine Engine Improved Deuterium Engine Power Core Fission Core Propulsion Aluminum Leg Treads Light Treads Leg Aluminum Leg Wheel Wheel Utility Large Storage Unit Device Improved Heat Sink Storage Large Storage Unit Processor Advanced Targeting Computer Protection Hardened Medium Armor Plating Weapon Assault Cannon Energy Gun Shock Rifle Energy Cannon EM Pulse Cannon Ballistic Gun Assault Rifle Ballistic Cannon Assault Cannon Launcher Advanced EMP Blaster Slashing Weapon Phasing Sabre Piercing Weapon Makeshift Spear Build | -11 -10 -10 -9 -9 -9 -8 -8 -7 -7 -7 -7 -7 ------- Run | Scr Mat Min Mat Min Exi Min Mat Fac Low Low Zio Dee Slots Evolved 6 | . . . 2 . . . 2 2 . . . . Power . | . . . . . . . . . . . . . Propulsion 1 | . . . 1 . . . . . . . . . Utility 5 | . . . 1 . . . 2 2 . . . . Weapon . | . . . . . . . . . . . . . Parts Attached 165 | 6 13 4 18 3 3 6 26 34 . . 24 28 Power 12 | 1 . 1 3 . . . 1 3 . . 1 2 Engine 10 | 1 . 1 3 . . . 1 3 . . . 1 Core 2 | . . . . . . . . . . . 1 1 Reactor . | . . . . . . . . . . . . . Propulsion 42 | 2 4 1 8 1 . 5 7 11 . . 2 1 Treads 6 | 1 4 1 . . . . . . . . . . Leg 35 | . . . 8 1 . 5 7 11 . . 2 1 Wheel 1 | 1 . . . . . . . . . . . . Hover . | . . . . . . . . . . . . . Flight . | . . . . . . . . . . . . . Utility 50 | 1 2 . 3 2 3 . 7 8 . . 7 17 Device 12 | . . . . . . . 3 2 . . . 7 Storage 9 | 1 2 . . . 1 . 1 . . . 2 2 Processor 2 | . . . . . . . . 2 . . . . Hackware . | . . . . . . . . . . . . . Protection 27 | . . . 3 2 2 . 3 4 . . 5 8 Artifact . | . . . . . . . . . . . . . Weapon 61 | 2 7 2 4 . . 1 11 12 . . 14 8 Energy Gun 9 | . . 1 . . . . 2 1 . . 3 2 Energy Cannon 5 | . . . . . . . . 2 . . . 3 Ballistic Gun 13 | 2 5 1 2 . . . . 2 . . 1 . Ballistic Cannon 16 | . . . 2 . . 1 6 5 . . 2 . Launcher 12 | . 2 . . . . . 3 2 . . 2 3 Special Weapon . | . . . . . . . . . . . . . Impact Weapon . | . . . . . . . . . . . . . Slashing Weapon 4 | . . . . . . . . . . . 4 . Piercing Weapon 2 | . . . . . . . . . . . 2 . Special Melee Weapon . | . . . . . . . . . . . . . Unidentified Prototypes 10 | . . . 1 . . . 3 . . . . 6 Parts Lost 24 | . . 4 2 . . . 5 3 . . . 10 Power 4 | . . 1 1 . . . 1 . . . . 1 Propulsion 7 | . . 1 . . . . 1 2 . . . 3 Utility 7 | . . . . . . . 2 1 . . . 4 Weapon 6 | . . 2 1 . . . 1 . . . . 2 Highest Loss Streak 9 | . . 2 2 . . . 3 1 . . . 9 Average Slot Usage (%) 95 | . 92 90 98 100 100 100 99 96 92 92 92 98 Engine 8 | . 14 13 10 11 11 11 8 7 7 7 6 . Treads 1 | . 13 14 . . . . . . . . . . Leg 23 | . . . 31 33 33 33 26 22 23 23 23 22 Device 5 | . . . . . . . 8 9 7 7 7 10 Storage 22 | . 21 28 22 22 25 22 26 23 23 23 19 26 Processor 3 | . . . . . . . . 7 7 7 7 4 Protection 9 | . . . 10 11 7 11 9 8 7 7 13 10 Ballistic Gun 5 | . 27 27 11 . . . . 5 7 7 1 . Ballistic Cannon 8 | . . . 7 22 22 22 17 5 7 7 4 . Slashing Weapon 1 | . . . . . . . . . . . 3 3 Naked Turns . | . . . . . . . . . . . . . Heaviest Build 108 | 11 39 40 52 52 81 71 91 106 106 106 108 97 Greatest Support 45 | 10 10 40 40 33 30 35 45 40 35 35 45 45 Greatest Overweight (x) 5 | 1 3 3 1 1 2 2 2 5 3 3 3 5 Average Overweight (x) 1 | . 2 1 . 1 1 1 1 2 3 3 1 1 Largest Inventory Capacity 24 | 6 16 16 16 16 24 18 24 24 24 24 24 24 Average Capacity 20 | 5 11 16 16 16 19 18 23 24 24 24 20 24 Most Carried 24 | 4 7 13 16 16 18 18 24 24 24 24 24 24 Average Carried 19 | 3 5 9 15 15 16 18 21 23 23 23 20 23 Final Capacity 24 | 6 16 16 16 16 18 18 24 24 24 24 24 24 Final Carried 24 | 4 7 13 16 16 18 18 24 24 23 24 24 20 Class Distribution -------------------- 42% | Scavenger-Mutant 30% | Mutant 27% | Hauler-Mutant Dominant Class ---------------- Mutant | -10/Materials Mutant | -10/Mines Mutant | -9/Materials Mutant | -9/Mines Mutant | -9/Exiles Mutant | -8/Mines Hauler-Mutant | -8/Materials Scavenger-Mutant | -7/Factory Scavenger-Mutant | -7/Lower Caves Scavenger-Mutant | -7/Lower Caves Scavenger-Mutant | -7/Zion Scavenger-Mutant | -7/Deep Caves Resources | -11 -10 -10 -9 -9 -9 -8 -8 -7 -7 -7 -7 -7 ----------- Run | Scr Mat Min Mat Min Exi Min Mat Fac Low Low Zio Dee Matter Collected 4736 | 262 436 157 636 158 94 108 1422 950 54 29 249 181 Remotely . | . . . . . . . . . . . . . Salvage Created 4448 | 145 530 112 863 256 . 132 979 1294 32 . . 105 Parts 288 | 14 38 9 53 11 . 13 66 71 4 . . 9 Haulers Intercepted 12 | . 1 . 5 . . . 4 2 . . . . Recyclers Shooed 4 | . 1 1 1 . . . 1 . . . . . Parts Field Recycled . | . . . . . . . . . . . . . Retrieved Matter . | . . . . . . . . . . . . . Parts Self-Destructed 25 | . . . . . . . . . 4 5 16 . Prevented . | . . . . . . . . . . . . . Kills | -11 -10 -10 -9 -9 -9 -8 -8 -7 -7 -7 -7 -7 ------- Run | Scr Mat Min Mat Min Exi Min Mat Fac Low Low Zio Dee Combat Hostiles Destroyed 75 | . 11 1 11 5 . 6 19 19 1 . . 2 Melee 2 | . . . . . . . 1 . . . . 1 Guns 20 | . 5 1 7 . . . . 6 1 . . . Cannons 37 | . . . 4 5 . 6 14 8 . . . . AOE 14 | . 6 . . . . . 4 3 . . . 1 Classes Destroyed 15 | 2 5 1 3 . . . 1 2 . . . 1 Worker 9 | . 2 1 2 1 . . 1 2 . . . . Builder 4 | . . 1 . . . . 3 . . . . . Tunneler 6 | 4 2 . . . . . . . . . . . Hauler 12 | . 1 . 5 . . . 4 2 . . . . Recycler 18 | 1 3 1 2 2 . . 5 4 . . . . Operator 3 | . 1 . 1 . . . 1 . . . . . Watcher 7 | . . . 2 . . . 4 1 . . . . Swarmer 21 | . 9 1 2 4 . 3 2 . . . . . Grunt 32 | . 2 . 5 1 . 3 12 9 . . . . Brawler 4 | . . . 1 . . . 2 1 . . . . Duelist 4 | . . . . . . . . 4 . . . . Protector 3 | . . . . . . . 1 2 . . . . Sentry 6 | . . . 3 . . . 2 1 . . . . Programmer 3 | . . . . . . . . 2 1 . . . Z-Light 2 | . . . . . . . . . . . . 2 Best Kill Streak 5 | 4 5 3 4 2 . 3 5 4 1 . . 1 Combat Bots Only 4 | . 3 1 3 2 . 3 4 4 1 . . 1 Max Kills in Single Turn 3 | 1 2 2 1 1 . 2 3 2 1 . . 1 Gunslinging 1 | . 1 . . . . . . . . . . . Exploded 2 | . 2 . . . . . 2 1 . . . 1 Melee 1 | . . . . . . . 1 . . . . 1 Uniques/NPCs Destroyed 1 | . . . . . . . . . . . . 1 Z-Imprinter (-7/Deep Caves) Combat | -11 -10 -10 -9 -9 -9 -8 -8 -7 -7 -7 -7 -7 -------- Run | Scr Mat Min Mat Min Exi Min Mat Fac Low Low Zio Dee Damage Taken 6324 | . 281 342 541 113 . 196 1565 1241 46 60 46 1893 Core 682 | . 21 66 46 . . 18 93 93 . . . 345 Absorbed by Shields . | . . . . . . . . . . . . . Core Remaining (%) 59 | 100 . 30 . . . 44 62 . . . . . Volleys Fired 343 | 12 36 23 48 16 . 19 99 72 4 2 1 11 Largest 2 | 2 2 2 2 2 . 2 2 2 2 2 2 2 Hottest 126 | 40 40 85 88 83 . 83 88 126 76 76 105 118 Shots Fired 660 | 24 68 46 94 32 . 38 194 136 8 4 2 14 Gun 268 | 24 64 46 70 . . . . 53 4 2 2 3 Cannon 371 | . . . 24 32 . 38 191 77 4 2 . 3 Launcher 21 | . 4 . . . . . 3 6 . . . 8 Special . | . . . . . . . . . . . . . Kinetic 600 | 24 64 44 81 32 . 38 191 114 8 4 . . Thermal 15 | . . 2 13 . . . . . . . . . Explosive 7 | . 4 . . . . . 3 . . . . . Electromagnetic 38 | . . . . . . . . 22 . . 2 14 Robot Hit Streak 10 | 9 10 9 8 8 . 5 8 8 4 2 1 3 Robot Miss Streak 9 | 2 2 4 5 2 . 3 6 9 6 3 2 2 Penetration Max . | . . . . . . . . . . . . . Secondary Targets 3 | . 1 1 1 . . . . . . . . . Max Gunslinging Chain 1 | . 1 1 1 . . . . . . . . . Shots Hit Robots 412 | 17 44 28 47 21 . 20 110 103 7 3 2 10 Core Hits 243 | 6 29 8 25 9 . 9 53 88 4 . . 12 Critical Hits 2 | . 1 . . . . . 1 . . . . . Critical Kills 1 | . 1 . . . . . . . . . . . Critical Parts Destroyed 1 | . . . . . . . 1 . . . . . Melee Attacks 63 | . . . . . . . . . . . 58 5 Impact . | . . . . . . . . . . . . . Slashing 63 | . . . . . . . . . . . 58 5 Piercing . | . . . . . . . . . . . . . Sneak Attacks 1 | . . . . . . . . . . . 1 . Combat Hostiles . | . . . . . . . . . . . . . Follow-up Attacks . | . . . . . . . . . . . . . Damage Inflicted 10776 | 215 854 352 861 534 . 449 3818 2692 154 51 130 666 Guns 2829 | 215 551 352 577 . . . . 1000 60 20 22 32 Cannons 5441 | . . . 284 534 . 449 2829 1200 94 31 . 20 Explosions 2240 | . 303 . . . . . 979 492 . . . 466 Melee 256 | . . . . . . . . . . . 108 148 Ramming 10 | . . . . . . . 10 . . . . . Kinetic 7729 | 215 551 321 697 534 . 449 2829 1928 154 51 . . Thermal 993 | . . 31 164 . . . 647 151 . . . . Explosive 635 | . 303 . . . . . 332 . . . . . Electromagnetic 1153 | . . . . . . . . 613 . . 22 518 Impact . | . . . . . . . . . . . . . Slashing 256 | . . . . . . . . . . . 108 148 Piercing . | . . . . . . . . . . . . . Highest Corruption 6 | . . . . . . . 6 3 3 5 5 . Average Corruption 3 | . . . . . . . 5 1 3 4 5 . Corruption Purged . | . . . . . . . . . . . . . Effects 45 | . . . . . . . 7 11 7 14 6 . Message Errors 11 | . . . . . . . 1 4 2 1 3 . Matter Fused 8 | . . . . . . . 2 . 1 4 1 . Heat Flow Errors 7 | . . . . . . . 1 1 . 3 2 . Energy Discharges 6 | . . . . . . . 1 2 1 2 . . Data Loss (minor) 12 | . . . . . . . 1 4 3 4 . . Targeting Errors 1 | . . . . . . . 1 . . . . . Overload Shots . | . . . . . . . . . . . . . Overflow Damage 187 | . 20 . . 14 . . 91 19 10 . 18 15 Projectiles 72 | . . . . 14 . . 29 19 10 . . . Explosions 82 | . 20 . . . . . 62 . . . . . Melee 33 | . . . . . . . . . . . 18 15 Knockbacks 51 | . . . . 6 . 12 28 4 1 . . . Impact . | . . . . . . . . . . . . . Kinetic 44 | . . . . 5 . 9 25 4 1 . . . Secondary 7 | . . . . 1 . 3 3 . . . . . Self-Inflicted Damage 40 | . . . . . . . 31 9 . . . . Shots 2 | . . . . . . . 1 1 . . . . Rammed 2 | . . . . . . . 2 . . . . . Targets Rammed 2 | . . . . . . . 2 . . . . . Kicked . | . . . . . . . . . . . . . Crushed . | . . . . . . . . . . . . . Highest Temperature 261 | . 2 66 85 45 . 112 94 105 . 219 261 90 Average Temperature 29 | . 1 27 21 16 . 32 19 17 . 90 99 40 Received Heat Transfer 2172 | . 63 132 138 6 . 81 639 378 . . . 735 Siege Activations . | . . . . . . . . . . . . . Robots Corrupted 3 | . . . . . . . . 3 . . . . Combat Hostiles 2 | . . . . . . . . 2 . . . . Parts Fried . | . . . . . . . . . . . . . Impact Corruptions . | . . . . . . . . . . . . . Robots Melted . | . . . . . . . . . . . . . Combat Hostiles . | . . . . . . . . . . . . . Parts Melted . | . . . . . . . . . . . . . Heat Transferred 906 | . . 74 370 . . . 400 62 . . . . Parts Sabotaged . | . . . . . . . . . . . . . Parts Stolen . | . . . . . . . . . . . . . Parts Stripped . | . . . . . . . . . . . . . Power Chain Reactions 2 | . . . . . . . . 2 . . . . Missiles Intercepted . | . . . . . . . . . . . . . Alert | -11 -10 -10 -9 -9 -9 -8 -8 -7 -7 -7 -7 -7 ------- Run | Scr Mat Min Mat Min Exi Min Mat Fac Low Low Zio Dee Peak Influence 1877 | 25 461 265 586 422 . 292 1433 1877 . . . . Average Influence 584 | 7 285 126 355 264 . 119 697 1281 . . . . Maximum Alert Level 5 | . 2 1 2 2 . 1 4 5 . . . . Low Security (%) 22 | 100 14 89 15 6 . 72 10 . . . . . Level 1 29 | . 64 10 38 88 . 27 20 . . . . . Level 2 18 | . 20 . 45 4 . . 26 12 . . . . Level 3 7 | . . . . . . . 20 10 . . . . Level 4 19 | . . . . . . . 22 62 . . . . Level 5 3 | . . . . . . . . 15 . . . . High Security . | . . . . . . . . . . . . . Max Security . | . . . . . . . . . . . . . Squads Dispatched 30 | . 3 . 3 . . 1 8 15 . . . . Investigation 6 | . 3 . 1 . . . 1 1 . . . . Extermination 2 | . . . . . . . . 2 . . . . Reinforcement 11 | . . . 2 . . 1 4 4 . . . . Assault 9 | . . . . . . . 3 6 . . . . Garrison 2 | . . . . . . . . 2 . . . . Intercept . | . . . . . . . . . . . . . Construction Impeded 7 | . . . . . . 1 2 4 . . . . Haulers Reinforced . | . . . . . . . . . . . . . Stealth | -11 -10 -10 -9 -9 -9 -8 -8 -7 -7 -7 -7 -7 --------- Run | Scr Mat Min Mat Min Exi Min Mat Fac Low Low Zio Dee Distress Signals 6 | . 1 . 2 . . . 2 1 . . . . Communications Jammed . | . . . . . . . . . . . . . Distress Signals . | . . . . . . . . . . . . . Times Spotted 205 | . 14 11 33 11 . 11 56 54 1 1 1 12 Peak Tracking Total 10 | . 4 3 4 3 . 4 10 7 1 1 1 6 Tactical Retreats 6 | . . . . 1 . . 2 2 . . . 1 Traps | -11 -10 -10 -9 -9 -9 -8 -8 -7 -7 -7 -7 -7 ------- Run | Scr Mat Min Mat Min Exi Min Mat Fac Low Low Zio Dee Traps Triggered 3 | . 2 . . . . . . 1 . . . . Indirectly . | . . . . . . . . . . . . . Trap Hack Attempts . | . . . . . . . . . . . . . Triggered . | . . . . . . . . . . . . . Disarmed . | . . . . . . . . . . . . . Reprogrammed . | . . . . . . . . . . . . . Reused . | . . . . . . . . . . . . . Traps Extracted . | . . . . . . . . . . . . . Installed . | . . . . . . . . . . . . . Triggered . | . . . . . . . . . . . . . Exploded 1 | . . . . . . . . . . . . 1 Machines | -11 -10 -10 -9 -9 -9 -8 -8 -7 -7 -7 -7 -7 ---------- Run | Scr Mat Min Mat Min Exi Min Mat Fac Low Low Zio Dee Machines Disabled 27 | . 8 . 3 1 . 3 6 5 . . . 1 Max in Single Turn 2 | . 2 . . . . 1 1 1 . . . . Garrison Access 1 | . . . . . . . . 1 . . . . Machines Sabotaged . | . . . . . . . . . . . . . Garrisons Compromised . | . . . . . . . . . . . . . Overloaded Fab Kills . | . . . . . . . . . . . . . Fab Network Shutdowns . | . . . . . . . . . . . . . Hacking | -11 -10 -10 -9 -9 -9 -8 -8 -7 -7 -7 -7 -7 --------- Run | Scr Mat Min Mat Min Exi Min Mat Fac Low Low Zio Dee Machines Accessed 30 | . 10 . 7 1 1 . 8 2 . . 1 . Terminals 19 | . 8 . 6 . . . 4 1 . . . . Fabricators . | . . . . . . . . . . . . . Repair Stations 1 | . . . . . . . 1 . . . . . Recycling Units 5 | . 2 . 1 . . . 2 . . . . . Scanalyzers 1 | . . . . . . . 1 . . . . . Garrison Access 1 | . . . . . . . . 1 . . . . Total Hacks 95 | . 33 . 18 1 4 . 30 4 . . 5 . Successful 55 | . 20 . 7 1 4 . 18 . . . 5 . Failed 39 | . 12 . 11 . . . 12 4 . . . . Catastrophic 6 | . 1 . 3 . . . 2 . . . . . Database Lockouts 1 | . 1 . . . . . . . . . . . Manual 42 | . 17 . 4 2 . . 16 1 . . 2 . Terminals 60 | . 26 . 16 . . . 16 2 . . . . Fabricators . | . . . . . . . . . . . . . Repair Stations 5 | . . . . . . . 5 . . . . . Recycling Units 15 | . 7 . 2 . . . 6 . . . . . Scanalyzers 3 | . . . . . . . 3 . . . . . Garrison Access 2 | . . . . . . . . 2 . . . . Terminal Hacks 28 | . 10 . 6 1 4 . 2 . . . 5 . Record 4 | . . . . . 4 . . . . . . . Part Schematic 5 | . . . . . . . . . . . 5 . Robot Schematic 2 | . . . . . . . 2 . . . . . Robot Analysis 2 | . 2 . . . . . . . . . . . Prototype ID Bank 4 | . 3 . 1 . . . . . . . . . Open Door 1 | . . . . 1 . . . . . . . . Branch Access Points 1 | . . . 1 . . . . . . . . . Unreport Threat 3 | . 1 . 2 . . . . . . . . . Locate Traps 2 | . 2 . . . . . . . . . . . Recall Investigation 1 | . 1 . . . . . . . . . . . Hauler Manifests 1 | . . . 1 . . . . . . . . . Zone Layout 2 | . 1 . 1 . . . . . . . . . Fabricator Hacks . | . . . . . . . . . . . . . Repair Station Hacks 4 | . . . . . . . 4 . . . . . Scan Component 2 | . . . . . . . 2 . . . . . Repair 2 | . . . . . . . 2 . . . . . Recycling Unit Hacks 5 | . 4 . . . . . 1 . . . . . Retrieve Matter 1 | . 1 . . . . . . . . . . . Retrieve Components 4 | . 3 . . . . . 1 . . . . . Scanalyzer 2 | . . . . . . . 2 . . . . . Insert Component 1 | . . . . . . . 1 . . . . . Analyze 1 | . . . . . . . 1 . . . . . Garrison Access Hacks . | . . . . . . . . . . . . . Unauthorized Hacks 38 | . 14 . 2 . . . 21 1 . . . . Terminals 12 | . 4 . . . . . 8 . . . . . Track 3 | . 1 . . . . . 2 . . . . . Botnet 5 | . 2 . . . . . 3 . . . . . Detonate 2 | . 1 . . . . . 1 . . . . . Disrupt 1 | . . . . . . . 1 . . . . . Operators 1 | . . . . . . . 1 . . . . . Fabricators . | . . . . . . . . . . . . . Repair Stations . | . . . . . . . . . . . . . Recycling Units 4 | . 2 . 1 . . . 1 . . . . . Tunnel 4 | . 2 . 1 . . . 1 . . . . . Scanalyzers . | . . . . . . . . . . . . . Garrison Access . | . . . . . . . . . . . . . Data Cores Recovered 1 | . 1 . . . . . . . . . . . Used 1 | . 1 . . . . . . . . . . . Hacking Detections 25 | . 10 . 7 . . . 6 2 . . . . Full Trace Events 1 | . . . . . . . . 1 . . . . Feedback Events . | . . . . . . . . . . . . . Feedback Blocked . | . . . . . . . . . . . . . Robot Schematics Acquired 2 | . . . . . . . 2 . . . . . Robots Built . | . . . . . . . . . . . . . Matter . | . . . . . . . . . . . . . Time . | . . . . . . . . . . . . . Total Robot Build Rating . | . . . . . . . . . . . . . Part Schematics Acquired 6 | . . . . . . . 1 . . . 5 . Parts Built . | . . . . . . . . . . . . . Matter . | . . . . . . . . . . . . . Time . | . . . . . . . . . . . . . Total Part Build Rating . | . . . . . . . . . . . . . Parts Repaired 2 | . . . . . . . 2 . . . . . Time 100 | . . . . . . . 100 . . . . . Parts Recycled . | . . . . . . . . . . . . . Recycled Matter . | . . . . . . . . . . . . . Retrieved Matter . | . . . . . . . . . . . . . Retrieved Components 10 | . 10 . . . . . . . . . . . Parts Scanalyzed 1 | . . . . . . . 1 . . . . . Part Schematics Acquired 1 | . . . . . . . 1 . . . . . Parts Damaged . | . . . . . . . . . . . . . Bothacking | -11 -10 -10 -9 -9 -9 -8 -8 -7 -7 -7 -7 -7 ------------ Run | Scr Mat Min Mat Min Exi Min Mat Fac Low Low Zio Dee Used RIF Installer . | . . . . . . . . . . . . . Robots Hacked . | . . . . . . . . . . . . . Non-combat . | . . . . . . . . . . . . . Combat . | . . . . . . . . . . . . . Robot Hacks Applied . | . . . . . . . . . . . . . Relay Couplers Released 1 | . . . . . . . . 1 . . . . Machine Destruction 1 | . . . . . . . . 1 . . . . Robots Rewired . | . . . . . . . . . . . . . Allies Hacked . | . . . . . . . . . . . . . Hacks Repelled . | . . . . . . . . . . . . . Allies | -11 -10 -10 -9 -9 -9 -8 -8 -7 -7 -7 -7 -7 -------- Run | Scr Mat Min Mat Min Exi Min Mat Fac Low Low Zio Dee Total Allies 6 | . 1 . . 3 . . . . . . 2 . Largest Group 4 | . 1 1 1 4 1 1 1 1 1 1 3 3 Highest-Rated Group 288 | . 61 63 69 109 69 70 77 95 92 92 288 287 Highest-Rated Ally 123 | . 61 63 69 69 69 70 77 95 92 92 100 123 Total Orders . | . . . . . . . . . . . . . Ally Attacks 351 | . 14 20 43 20 . 15 90 71 2 3 3 70 Total Damage 13070 | . 596 345 1464 438 . 558 3473 3884 80 91 107 2034 Kills 147 | . 9 11 27 6 . 8 35 38 . 1 1 11 Allies Corrupted . | . . . . . . . . . . . . . Allies Melted . | . . . . . . . . . . . . . Intel | -11 -10 -10 -9 -9 -9 -8 -8 -7 -7 -7 -7 -7 ------- Run | Scr Mat Min Mat Min Exi Min Mat Fac Low Low Zio Dee Robot Analysis Total 2 | . 2 . . . . . . . . . . . Derelict Logs Recovered 6 | . . . . 3 . . . . 1 1 1 . Drone Launches . | . . . . . . . . . . . . . Drone Recoveries . | . . . . . . . . . . . . . Exploration | -11 -10 -10 -9 -9 -9 -8 -8 -7 -7 -7 -7 -7 ------------- Run | Scr Mat Min Mat Min Exi Min Mat Fac Low Low Zio Dee Turns Passed 15718 | 92 850 782 1488 858 660 774 2019 2023 490 683 4518 481 Spaces Moved 8485 | 51 705 433 836 532 378 392 930 901 221 321 2568 217 Core 1 | 1 . . . . . . . . . . . . Treads 278 | . . 254 24 . . . . . . . . . Legs 7272 | . . . 812 532 378 392 930 901 221 321 2568 217 Wheels 934 | 50 705 179 . . . . . . . . . . Hover . | . . . . . . . . . . . . . Flight . | . . . . . . . . . . . . . Fastest Speed 50 | 50 80 110 150 150 150 150 153 180 210 210 120 150 Average Speed 163 | 85 100 150 150 150 169 179 169 188 210 210 166 178 Slowest Speed 270 | 90 110 180 160 150 180 180 185 270 210 210 210 270 Overloaded Moves . | . . . . . . . . . . . . . Propulsion Burnouts . | . . . . . . . . . . . . . Robots Hopped . | . . . . . . . . . . . . . Cave-ins Triggered . | . . . . . . . . . . . . . Exploration Rate (%) 62 | 4 95 88 74 97 55 87 70 23 37 48 87 43 Regions Visited 12 Branch Regions 8 Pre-discovered Areas 8 | . 2 . 1 2 1 . 1 . . . 1 . Known Exits Taken 2 | . . . 1 . . . . 1 . . . . Unknown Exits Taken 10 | 1 1 1 . 1 1 1 1 . 1 1 1 . Scrap Searched 5 | . . . . . . . . . . 1 4 . Spaces Dug 4 | . . . . . . . 1 . . . 3 . Terrain Destroyed 196 | . 38 . 4 4 . 22 112 11 1 1 3 . Melee 3 | . . . . . . . . . . . 3 . Projectile 55 | . . . 4 4 . 7 33 5 1 1 . . AOE 138 | . 38 . . . . 15 79 6 . . . . Actions | -11 -10 -10 -9 -9 -9 -8 -8 -7 -7 -7 -7 -7 --------- Run | Scr Mat Min Mat Min Exi Min Mat Fac Low Low Zio Dee Total 9591 | 72 777 516 994 561 396 425 1175 1094 240 327 2724 290 Wait 308 | . 15 48 37 7 10 6 77 51 15 4 32 6 Move 8473 | 50 704 432 835 531 377 391 929 900 220 320 2567 217 Hop . | . . . . . . . . . . . . . Pick Up 103 | 4 5 9 26 1 4 . 21 11 . 1 18 3 Fast Attach 57 | 6 5 1 6 1 . . 8 9 . . 11 10 Attach 39 | . 1 3 5 . 1 . 8 9 . . 3 9 Detach 13 | . . . . . . . 1 3 . . 2 7 Swap 69 | . 7 . 7 2 2 6 10 16 . . 10 9 Drop 121 | . 4 . 30 3 2 3 20 23 1 . 22 13 Fire 343 | 12 36 23 48 16 . 19 99 72 4 2 1 11 Melee 63 | . . . . . . . . . . . 58 5 Ram . | . . . . . . . . . . . . . Kick 2 | . . . . . . . 2 . . . . . Crush . | . . . . . . . . . . . . . Escape Stasis . | . . . . . . . . . . . . . Rewire . | . . . . . . . . . . . . . Trap . | . . . . . . . . . . . . . Miscellaneous . | . . . . . . . . . . . . . Route ------- -11/Scrapyard -10/Materials (discovered 5 exits: *Mat x3 / [*Min x2]) -10/Mines (discovered 2 exits: *Mat x2) -9/Materials (discovered 4 exits: *Mat x3 / *Min) -9/Mines (discovered 3 exits: *Mat x2 / *Exi) -9/Exiles (discovered 2 exits: [*Min x2]) -8/Mines -8/Materials (discovered 4 exits: *Fac x3 / [*Sto]) -7/Factory (discovered 2 exits: *Fac / *Low) -7/Lower Caves -7/Lower Caves (discovered 2 exits: *Fac / *Zio) -7/Zion (discovered 2 exits: [*Dee] / [*Pro]) -7/Deep Caves History --------- Turn | Location | Event 19 | -11/Scrapyard | Discovered new exit (range 13) 93 | -11/Scrapyard | Entered Materials 228 | -10/Materials | Discovered new exit (range 12) 312 | -10/Materials | Build established: Mutant 356 | -10/Materials | Discovered new exit (range 13) 448 | -10/Materials | Discovered new exit (range 16) 472 | -10/Materials | Discovered new exit (range 7) 550 | -10/Materials | Central database locked down 579 | -10/Materials | Discovered new exit (range 16) 943 | -10/Materials | Entered Mines 943 | -10/Mines | Accompanied by 1 ally 1065 | -10/Mines | Assisted by bots powering up and referring to "LRC-V3" 1184 | -10/Mines | Discovered new exit (range 11) 1631 | -10/Mines | Received a Rocket Launcher from a helpful Derelict 1635 | -10/Mines | Core integrity fell below 50% 1698 | -10/Mines | Discovered new exit (range 6) 1725 | -10/Mines | Entered Materials 1725 | -9/Materials | Accompanied by 1 ally 1725 | -9/Materials | Evolved 2 slots: Propulsion x1, Utility x1 2050 | -9/Materials | Discovered new exit (range 10) 2083 | -9/Materials | Build established: Scavenger-Mutant 2327 | -9/Materials | Discovered new exit (range 7) 2470 | -9/Materials | Identified exit to Mines 2594 | -9/Materials | Build established: Mutant 2752 | -9/Materials | Discovered new exit (range 7) 2985 | -9/Materials | Discovered new exit (range 12) 3213 | -9/Materials | Entered Mines 3213 | -9/Mines | Accompanied by 1 ally 3214 | -9/Mines | Learned location of Storage (-8) 3243 | -9/Mines | Learned Materials trap positions 3279 | -9/Mines | Discovered new exit (range 5) 3295 | -9/Mines | Met a Derelict who couldn't figure out how to use a Trap Extractor 3384 | -9/Mines | Assisted by bots powering up and referring to "LRC-V3" 3608 | -9/Mines | Discovered new exit (range 10) 3827 | -9/Mines | Learned Materials terminal intel 4064 | -9/Mines | Deemed a non-threat by the Exiles lab entrance 4064 | -9/Mines | Discovered new exit (range 5) 4071 | -9/Mines | Entered Exiles 4071 | -9/Exiles | Accompanied by 1 ally 4111 | -9/Exiles | Met 8R-AWN 4135 | -9/Exiles | Met EX-HEX 4191 | -9/Exiles | Met EX-DEC 4219 | -9/Exiles | Learned location of Zion (-7) 4488 | -9/Exiles | Discovered new exit (range 14) 4707 | -9/Exiles | Discovered new exit (range 14) 4731 | -9/Exiles | Entered Mines 4731 | -8/Mines | Accompanied by 1 ally 5125 | -8/Mines | Core integrity fell below 50% 5427 | -8/Mines | Discovered new exit (range 9) 5505 | -8/Mines | Entered Materials 5505 | -8/Materials | Accompanied by 1 ally 5505 | -8/Materials | Evolved 2 slots: Utility x2 5506 | -8/Materials | Loaded intel: 10 trap records 5507 | -8/Materials | Loaded intel: 12 terminal locations 5786 | -8/Materials | Discovered new exit (range 16) 5856 | -8/Materials | Build established: Hauler-Mutant 6014 | -8/Materials | Repaired Rigged Fission Core 6076 | -8/Materials | Repaired Rigged Fission Core 6440 | -8/Materials | Discovered new exit (range 8) 6713 | -8/Materials | Discovered new exit (range 11) 7105 | -8/Materials | First assault squad dispatched 7223 | -8/Materials | Discovered new exit (range 16) 7234 | -8/Materials | Lost 3 parts (1n2u) 7524 | -8/Materials | Entered Factory 7524 | -7/Factory | Accompanied by 1 ally 7524 | -7/Factory | Evolved 2 slots: Utility x2 7765 | -7/Factory | Garrison activated, responded to threat 7842 | -7/Factory | Garrison activated, responded to threat 8014 | -7/Factory | Discovered new exit (range 9) 8145 | -7/Factory | Discovered new exit (range 15) 8281 | -7/Factory | Identified exit to Factory 8324 | -7/Factory | First assault squad dispatched 8365 | -7/Factory | Identified exit to Lower Caves 8542 | -7/Factory | Build established: Scavenger-Mutant 9547 | -7/Factory | Entered Lower Caves 9547 | -7/Lower Caves | Accompanied by 1 ally 9587 | -7/Lower Caves | Learned Factory security intel 9941 | -7/Lower Caves | Encountered a Warlord checkpoint 9955 | -7/Lower Caves | Discovered new exit (range 12) 10037 | -7/Lower Caves | Entered another Lower Caves area 10037 | -7/Lower Caves | Accompanied by 1 ally 10061 | -7/Lower Caves | Discovered exit to Factory (range 12) 10103 | -7/Lower Caves | Learned Factory security intel 10330 | -7/Lower Caves | Discovered new exit (range 8) 10720 | -7/Lower Caves | Entered Zion 10720 | -7/Zion | Accompanied by 1 ally 10865 | -7/Zion | Discovered new exit (range 12) 10889 | -7/Zion | Given A8's code to call for help 10910 | -7/Zion | System corruption cleaned by Quarantine Array 11785 | -7/Zion | Received a visual enhancement algorithm 12124 | -7/Zion | Build established: Hauler-Mutant 12521 | -7/Zion | Visited the Megawrench Repair Shop 12548 | -7/Zion | Megawrench repaired 11 parts 13138 | -7/Zion | Build established: Scavenger-Mutant 13390 | -7/Zion | Enhanced Grunt warped into view, answering call for help 13397 | -7/Zion | Enhanced Grunt warped into view, answering call for help 14377 | -7/Zion | Discovered new exit (range 4) 14717 | -7/Zion | Learned location of Warlord (-4) 15226 | -7/Zion | Saw the warning signs outside the Deep Caves entrance 15238 | -7/Zion | Entered Deep Caves 15238 | -7/Deep Caves | Accompanied by 3 allies 15394 | -7/Deep Caves | Z-Facility disabled 15403 | -7/Deep Caves | Attacked by Z-Imprinter 15422 | -7/Deep Caves | Allies destroyed Z-Imprinter 15438 | -7/Deep Caves | Core integrity fell below 50% 15446 | -7/Deep Caves | Found Prototype Protection 15446 | -7/Deep Caves | Identified Zio. Weapon Casing 15459 | -7/Deep Caves | Found Prototype Device 15459 | -7/Deep Caves | Identified Zio. Metafield Generator 15488 | -7/Deep Caves | Found Prototype Device 15488 | -7/Deep Caves | Identified Exp. Thermal Shield 15618 | -7/Deep Caves | Found Zio. Weapon Casing 15711 | -7/Deep Caves | Core integrity fell below 20% 15719 | -7/Deep Caves | Core destroyed Last Messages --------------- 15693_ Enhanced Grunt suffers critical hit. 15696_ IS-NZP(z) suffers critical hit. 15696_ Energy Filter destroyed. 15698_ Carbon-fiber Leg destroyed. 15699_ Slug penetrates IS-NZP(z). 15699_ IS-NZP(z) suffers critical hit. 15701_ Fission Core destroyed. 15703_ Slug penetrates IS-NZP(z). 15703_ IS-NZP(z) destroyed. 15705_ Zio. Weapon Casing destroyed. Player 2: "Shhhh! I think I heard a Garrison!" 15706_ Slug penetrates PX-59A(z). 15706_ HV Slug penetrates PX-59A(z). 15708_ Shock Bomb Launcher destroyed. 15710_ Slug penetrates EO-KF5(z). 15711_ Dropped Adv. EMP Blaster. 15712_ FG-7B5(z) misfires. 15715_ Carbon-fiber Leg destroyed. 15717_ LP-SMD(z) IFF system glitched. 15718_ FG-7B5(z) IFF system glitched. Map ----- +----------------------------------------------------+ | ?????????????????????????????????????????????????? | | ?????????????????????????????????????????????????? | | ?????????????????????????????????????????????????? | | ?????????????????????????????????????????????????? | | ?????????????????????????????????????????????????? | | ?????????????????????#? ???????????????????????? | | ??????????????????? # ## ????????????????????? | | ???????????????? ! ?????????????????? | | ??????????????? % ???????????????? | | ???????????????? ?????????????? | | ???????????????## z ????????????? | | ???????????????# "???????????? | | ????????????#### "???????????? | | ????????????# # "???????????" | | ????????????? ""?????????"" | | ??????????????# ""?????????? | | ??????????????## ""??????????" | | ??????????????#; ""??????????" | | ??????????????# ""??????????" | | ???????????????# @ ""???????"""" | | ????????????##?# """?????" ! | | ???????????## # ""?????""% % | | ???????????# ] ""?????" | | ???????????# ""?????""% | | ???????????# ""?????"" | | ???????????## @ """?????""" | | ????????????### """????""""" | | ??????????????# """????? | | ??????????????## """"?????""" | | ???????????????# """"?? ??""" | | ???????????????## """""" ??""" | | ????????????????# """"" """"" | | ????????????????# """" """"" | | ????????????????# """" """" | | ?????????????? """" """ | | ?????????????? """" | | ????????????? """""""" " | | ????????????? """"""" | | ????????????? | | ??????????????? | | ?????????????? | | ?????????????? | | ????????????? | | ?????????????# ! | | ?????????????# * ! | | ?????????????# "" = [[ | | ??????????????# ##### !!# "" | | ??????????????# ????########"# ### | | ??????????????## ##?#?????????????#############?? | | ?????????????????????????????????????????????????? | +----------------------------------------------------+ Best States ------------- Heat Dissipation 48 Energy Generation 18 Energy Capacity 1310 Matter Stores 300 Matter Capacity 300 Sight Range 16 Terrain Scan Density 10 Armor Coverage 600 Resistance: TH 30 Resistance: EM 15 Weapon Shielding 100 Evasion (%) 44 Targeting Accuracy 8 Recoil Reduction 2 Energy Filtering 30 Particle Charging 25 Item Schematics ----------------- Fission Core | -8/Materials | Scanalyzed Riot Gun | -7/Zion | Free Hvy. Riot Gun | -7/Zion | Free Barrage Gun | -7/Zion | Free Battle Cannon | -7/Zion | Free Ripper | -7/Zion | Free Robot Schematics ------------------ O-24 Administrator | -8/Materials | Hacked I-25 Savior | -8/Materials | Hacked Fabricated ------------ Nothing Alien Tech Used ----------------- None Achievements -------------- None Challenges ------------ None Game ------ Seed LobotomyGrenadeMediator Manual? 0 Play Time 01:27:31 Cumulative 374.9 hours Start 2020.04.03 @ 15:42:39 End 2020.04.03 @ 17:09:23 Sessions 2 Manual Loads 0 Difficulty Rogue Special Mode AFD2020/Player2 Game No. 262 Rogue 262 Adventurer 0 Explorer 0 Win Type - Total 4 Types 4/0/0/0/0/0/0 Lore% 82 Gallery% 84 Achievement% 63 Wizard Run 0 Options --------- ASCII 0 Keyboard 0 Movement Mouse Keybinds 1 Fullscreen 2 Font 24/Smallcaps Map View 76x50 Tactical HUD 1 Map Filters NONE Filters NONE Steam 1 RUN: 4256c527-5da1-49c1-8dcb-49f3a29449ad